fUST/lending_fUST_20250619
["ID","MTS","AMOUNT","RATE_DAILY","PERIOD"]
[366545195,1750314640729,-3337.58,0.00021917,6]
[366545196,1750314640739,-460.0,0.00021917,6]
[366545197,1750314640749,-508.46,0.00021917,6]
[366545198,1750314640758,-808.15,0.00021917,6]
[366545199,1750314640768,-4300.21,0.00021917,6]
[366545200,1750314640777,-3102.26,0.00021917,6]
[366545201,1750314640787,-460.0,0.00021917,6]
[366545202,1750314640796,-460.0,0.00021917,6]
[366545203,1750314640806,-460.0,0.00021917,6]
[366545204,1750314640815,-460.0,0.00021917,6]
[366545205,1750314640824,-210.0,0.00021917,6]
[366545206,1750314640833,-460.0,0.00021917,6]
[366545207,1750314640843,-334.16367049,0.00021917,6]
[366545208,1750314640852,-460.0,0.00021917,6]
[366545209,1750314640861,-495.33152296,0.00021917,6]
[366545210,1750314640871,-460.0,0.00021917,6]
[366545211,1750314640880,-1152.07,0.00021917,6]
[366545212,1750314640890,-440.0,0.00021917,6]
[366545213,1750314640899,-460.0,0.00021917,6]
[366545214,1750314640909,-460.0,0.00021917,6]
[366545215,1750314640918,-237.64402875,0.00021917,6]
[366545216,1750314640927,-845.89,0.00021917,6]
[366545217,1750314640936,-438.8049342,0.00021917,6]
[366545218,1750314640945,-1041.67,0.00021917,6]
[366545219,1750314640954,-460.0,0.00021917,6]
[366545220,1750314640964,-460.0,0.00021917,6]
[366545221,1750314640973,-440.0,0.00021917,6]
[366545222,1750314640982,-460.0,0.00021917,6]
[366545223,1750314640991,-1375.18,0.00021917,6]
[366545224,1750314641000,-460.0,0.00021917,6]
[366545225,1750314641010,-460.0,0.00021917,6]
[366545226,1750314641019,-1437.42,0.00021917,6]
[366545227,1750314641028,-460.0,0.00021917,6]
[366545228,1750314641037,-460.0,0.00021917,6]
[366545229,1750314641046,-460.0,0.00021917,6]
[366545230,1750314641055,-460.0,0.00021917,6]
[366545231,1750314641064,-460.0,0.00021917,6]
[366545232,1750314641073,-445.95325318,0.00021917,6]
[366545233,1750314641083,-553.83,0.00021917,6]
[366545234,1750314641092,-460.0,0.00021917,6]
[366545235,1750314641101,-364.18284731,0.00021917,6]
[366545236,1750314641110,-460.0,0.00021917,6]
[366545237,1750314641120,-460.0,0.00021917,6]
[366545238,1750314641129,-463.14026495,0.00021917,6]
[366545239,1750314641139,-460.0,0.00021917,6]
[366545240,1750314641148,-688.99,0.00021917,6]
[366545241,1750314641157,-460.0,0.00021917,6]
[366545242,1750314641166,-460.0,0.00021917,6]
[366545243,1750314641176,-977.0,0.00021917,6]
[366545244,1750314641186,-460.0,0.00021917,6]
[366545245,1750314641195,-460.0,0.00021917,6]
[366545246,1750314641204,-369.54498063,0.00021917,6]
[366545247,1750314641214,-460.0,0.00021917,6]
[366545248,1750314641224,-1282.29,0.00021917,6]
[366545249,1750314641233,-460.0,0.00021917,6]
[366545250,1750314641242,-500.0,0.00021917,6]
[366545251,1750314641252,-348.58803234,0.00021917,6]
[366545252,1750314641261,-435.83596857,0.00021917,6]
[366545253,1750314641271,-460.0,0.00021917,6]
[366545254,1750314641283,-460.0,0.00021917,6]
[366545255,1750314641292,-460.0,0.00021917,6]
[366545257,1750314641302,-723.85,0.00021917,6]
[366545258,1750314641311,-537.51,0.00021917,6]
[366545259,1750314641321,-460.0,0.00021917,6]
[366545260,1750314641330,-460.0,0.00021917,6]
[366545261,1750314641339,-460.0,0.00021917,6]
[366545262,1750314641349,-460.0,0.00021917,6]
[366545263,1750314641358,-440.0,0.00021917,6]
[366545264,1750314641368,-300.0,0.00021917,2]
[366545265,1750314641378,-460.0,0.00021917,6]
[366545266,1750314641388,-460.0,0.00021917,6]
[366545267,1750314641397,-343.45204961,0.00021917,6]
[366545268,1750314641406,-460.0,0.00021917,6]
[366545269,1750314641415,-378.77042877,0.00021917,6]
[366545270,1750314641424,-559.22850677,0.00021917,6]
[366545271,1750314641434,-460.0,0.00021917,6]
[366545272,1750314641443,-460.0,0.00021917,6]
[366545273,1750314641452,-460.0,0.00021917,6]
[366545274,1750314641462,-460.0,0.00021917,6]
[366545275,1750314641471,-460.0,0.00021917,6]
[366545276,1750314641481,-460.0,0.00021917,6]
[366545277,1750314641490,-2314.76,0.00021917,6]
[366545278,1750314641499,-460.0,0.00021917,6]
[366545279,1750314641508,-460.0,0.00021917,6]
[366545280,1750314641517,-460.0,0.00021917,6]
[366545281,1750314641527,-430.0,0.00021917,6]
[366545282,1750314641536,-402.83896586,0.00021917,6]
[366545283,1750314641545,-1363.24,0.00021917,6]
[366545284,1750314641554,-2221.43,0.00021917,6]
[366545285,1750314641563,-460.0,0.00021917,6]
[366545286,1750314641572,-578.59671348,0.00021917,6]
[366545287,1750314641581,-460.0,0.00021917,6]
[366545288,1750314641590,-460.0,0.00021917,6]
[366545289,1750314641599,-460.0,0.00021917,6]
[366545290,1750314641609,-414.6673875,0.00021917,6]
[366545291,1750314641618,-2678.14,0.00021917,6]
[366545292,1750314641627,-467.69887592,0.00021917,6]
[366545293,1750314641636,-460.0,0.00021917,6]
[366545294,1750314641645,-460.0,0.00021917,6]
[366545295,1750314641654,-460.0,0.00021917,6]
[366545296,1750314641663,-557.65,0.00021917,6]
[366545297,1750314641672,-460.0,0.00021917,6]
[366545298,1750314641681,-460.0,0.00021917,6]
[366545299,1750314641690,-2617.65,0.00021917,6]
[366545300,1750314641699,-460.0,0.00021917,6]
[366545301,1750314641708,-460.0,0.00021917,6]
[366545302,1750314641717,-807.16,0.00021917,6]
[366545303,1750314641727,-625.14,0.00021917,6]
[366545304,1750314641736,-440.0,0.00021917,6]
[366545305,1750314641745,-460.0,0.00021917,6]
[366545306,1750314641754,-460.0,0.00021917,6]
[366545307,1750314641763,-460.0,0.00021917,6]
[366545308,1750314641772,-679.82,0.00021917,6]
[366545309,1750314641782,-460.0,0.00021917,6]
[366545310,1750314641791,-400.9064859,0.00021917,6]
[366545311,1750314641800,-533.55,0.00021917,6]
[366545312,1750314641809,-511.62475922,0.00021973,2]
[366545313,1750314641818,-503.79810707,0.00021973,2]
[366545314,1750314641831,-500.0,0.00021973,2]
[366545315,1750314641840,-520.66386533,0.00021973,2]
[366545316,1750314641850,-500.0,0.00021982,2]
[366545317,1750314641860,-167.0,0.00022,2]
[366545318,1750314641869,-420.0,0.00022041,2]
[366545319,1750314641879,-420.0,0.00022043,2]
[366545320,1750314641888,-2007.59611131,0.00022091,2]
[366545321,1750314641898,-11616.8564463,0.00022091,2]
[366545322,1750314641907,-654.42341553,0.00022137,2]
[366545323,1750314641917,-203.39711446,0.00022163,4]
[366545324,1750314641927,-584.5965411,0.00022191,6]
[366545325,1750314641936,-460.0,0.00022191,6]
[366545326,1750314641945,-205.76758474,0.00022191,6]
[366545327,1750314641954,-309.67031637,0.00022191,6]
[366545328,1750314641963,-480.5108392,0.00022191,6]
[366545329,1750314641973,-1476.84,0.00022191,6]
[366545330,1750314641982,-594.03,0.00022191,6]
[366545331,1750314641992,-460.0,0.00022191,6]
[366545332,1750314642001,-460.0,0.00022191,6]
[366545333,1750314642010,-460.0,0.00022191,6]
[366545334,1750314642019,-350.0,0.00022191,6]
[366545335,1750314642028,-460.0,0.00022191,6]
[366545336,1750314642038,-354.28826946,0.00022191,6]
[366545337,1750314642047,-558.02,0.00022191,6]
[366545338,1750314642056,-487.83,0.00022191,6]
[366545339,1750314642066,-460.0,0.00022191,6]
[366545340,1750314642075,-460.0,0.00022191,6]
[366545341,1750314642085,-1624.74,0.00022191,6]
[366545342,1750314642095,-460.0,0.00022191,6]
[366545343,1750314642104,-460.0,0.00022191,6]
[366545344,1750314642113,-460.0,0.00022191,6]
[366545345,1750314642122,-460.0,0.00022191,6]
[366545346,1750314642132,-460.0,0.00022191,6]
[366545347,1750314642141,-460.0,0.00022191,6]
[366545348,1750314642151,-310.0,0.00022191,6]
[366545349,1750314642160,-467.55100106,0.00022191,6]
[366545350,1750314642169,-577.72,0.00022191,6]
[366545351,1750314642178,-460.0,0.00022191,6]
[366545352,1750314642187,-460.0,0.00022191,6]
[366545353,1750314642196,-420.0,0.00022191,6]
[366545354,1750314642206,-460.0,0.00022191,6]
[366545355,1750314642215,-460.0,0.00022191,6]
[366545356,1750314642224,-460.0,0.00022191,6]
[366545357,1750314642234,-460.0,0.00022191,6]
[366545358,1750314642244,-420.0,0.00022191,6]
[366545359,1750314642253,-537.5,0.00022191,6]
[366545360,1750314642263,-1524.28,0.00022191,6]
[366545361,1750314642272,-477.46,0.00022191,6]
[366545362,1750314642286,-460.0,0.00022191,6]
[366545363,1750314642295,-460.0,0.00022191,6]
[366545364,1750314642304,-460.0,0.00022191,6]
[366545365,1750314642314,-583.04,0.00022191,6]
[366545366,1750314642323,-460.0,0.00022191,6]
[366545367,1750314642333,-460.0,0.00022191,6]
[366545368,1750314642343,-460.0,0.00022191,6]
[366545369,1750314642353,-3639.1,0.00022191,6]
[366545370,1750314642364,-460.0,0.00022191,6]
[366545371,1750314642374,-2440.84,0.00022191,6]
[366545372,1750314642384,-3337.58,0.00022191,6]
[366545373,1750314642393,-460.0,0.00022191,6]
[366545374,1750314642402,-508.46,0.00022191,6]
[366545375,1750314642412,-808.15,0.00022191,6]
[366545376,1750314642421,-4300.21,0.00022191,6]
[366545377,1750314642430,-3102.26,0.00022191,6]
[366545378,1750314642440,-460.0,0.00022191,6]
[366545379,1750314642449,-530.41102978,0.00022191,6]
[366545380,1750314642458,-460.0,0.00022191,6]
[366545381,1750314642467,-460.0,0.00022191,6]
[366545382,1750314642477,-1152.07,0.00022191,6]
[366545383,1750314642486,-460.0,0.00022191,6]
[366545384,1750314642495,-460.0,0.00022191,6]
[366545385,1750314642505,-845.89,0.00022191,6]
[366545386,1750314642514,-1041.67,0.00022191,6]
[366545387,1750314642523,-460.0,0.00022191,6]
[366545388,1750314642533,-460.0,0.00022191,6]
[366545389,1750314642542,-1375.18,0.00022191,6]
[366545390,1750314642552,-460.0,0.00022191,6]
[366545391,1750314642562,-460.0,0.00022191,6]
[366545392,1750314642571,-1437.42,0.00022191,6]
[366545393,1750314642581,-460.0,0.00022191,6]
[366545394,1750314642590,-460.0,0.00022191,6]
[366545395,1750314642600,-360.0,0.00022191,6]
[366545396,1750314642610,-460.0,0.00022191,6]
[366545397,1750314642619,-504.99052834,0.00022191,6]
[366545398,1750314642628,-460.0,0.00022191,6]
[366545399,1750314642638,-553.83,0.00022191,6]
[366545400,1750314642648,-460.0,0.00022191,6]
[366545401,1750314642657,-241.46932528,0.00022191,6]
[366545402,1750314642667,-460.0,0.00022191,6]
[366545403,1750314642676,-688.99,0.00022191,6]
[366545404,1750314642686,-460.0,0.00022191,6]
[366545405,1750314642695,-460.0,0.00022191,6]
[366545406,1750314642705,-977.0,0.00022191,6]
[366545407,1750314642715,-460.0,0.00022191,6]
[366545408,1750314642724,-479.17295753,0.00022191,6]
[366545409,1750314642734,-1282.29,0.00022191,6]
[366545410,1750314642744,-460.0,0.00022191,6]
[366545411,1750314642753,-510.92187301,0.00022191,6]
[366545412,1750314642763,-430.0,0.00022191,6]
[366545413,1750314642772,-460.0,0.00022191,6]
[366545414,1750314642782,-723.85,0.00022191,6]
[366545415,1750314642791,-537.51,0.00022191,6]
[366545416,1750314642801,-460.0,0.00022191,6]
[366545417,1750314642811,-460.0,0.00022191,6]
[366545418,1750314642821,-300.0,0.00022191,2]
[366545419,1750314642830,-460.0,0.00022191,6]
[366545420,1750314642840,-390.0,0.00022191,6]
[366545421,1750314642851,-460.0,0.00022191,6]
[366545422,1750314642860,-460.0,0.00022191,6]
[366545423,1750314642869,-430.0,0.00022191,6]
[366545424,1750314642879,-460.0,0.00022191,6]
[366545425,1750314642888,-460.0,0.00022191,6]
[366545426,1750314642898,-2314.76,0.00022191,6]
[366545427,1750314642908,-460.0,0.00022191,6]
[366545428,1750314642917,-370.0,0.00022191,6]
[366545429,1750314642926,-1363.24,0.00022191,6]
[366545430,1750314642936,-2221.43,0.00022191,6]
[366545431,1750314642945,-460.0,0.00022191,6]
[366545432,1750314642956,-460.0,0.00022191,6]
[366545433,1750314642966,-2678.14,0.00022191,6]
[366545434,1750314642976,-460.0,0.00022191,6]
[366545435,1750314642987,-460.0,0.00022191,6]
[366545436,1750314642998,-557.65,0.00022191,6]
[366545437,1750314643008,-460.0,0.00022191,6]
[366545438,1750314643018,-460.0,0.00022191,6]
[366545439,1750314643027,-435.36153411,0.00022191,6]
[366545440,1750314643037,-2617.65,0.00022191,6]
[366545441,1750314643047,-460.0,0.00022191,6]
[366545442,1750314643056,-807.16,0.00022191,6]
[366545443,1750314643066,-625.14,0.00022191,6]
[366545444,1750314643075,-435.30222939,0.00022191,6]
[366545445,1750314643085,-460.0,0.00022191,6]
[366545446,1750314643095,-679.82,0.00022191,6]
[366545447,1750314643104,-460.0,0.00022191,6]
[366545448,1750314643114,-533.55,0.00022191,6]
[366545449,1750314643123,-932.17,0.000222,7]
[366545450,1750314643132,-1620.88,0.000222,7]
[366545451,1750314643141,-75964.85,0.000222,7]
[366545452,1750314643151,-160.0,0.000222,7]
[366545453,1750314643160,-151.0,0.00022233,2]
[366545454,1750314643170,-151.0,0.00022233,2]
[366545462,1750314643349,-151.0,0.00022233,2]
[366545464,1750314643360,-151.0,0.00022233,2]
[366545466,1750314643369,-164.07875614,0.00022233,2]
[366545468,1750314643379,-1688.0,0.00022233,2]
[366545470,1750314643389,-210.8812712,0.00022233,2]
[366545472,1750314643399,-500.0,0.00022233,2]
[366545474,1750314643409,-500.0,0.00022233,2]
[366545476,1750314643418,-151.0,0.00022233,2]
[366545478,1750314643427,-500.0,0.00022233,2]
[366545480,1750314643437,-500.0,0.00022233,2]
[366545482,1750314643446,-151.0,0.00022233,2]
[366545483,1750314643455,-500.0,0.00022233,2]
[366545485,1750314643465,-500.0,0.00022233,2]
[366545487,1750314643474,-5000.0,0.00022233,2]
[366545489,1750314643484,-151.0,0.00022233,2]
[366545491,1750314643493,-500.0,0.00022233,2]
[366545493,1750314643502,-500.0,0.00022233,2]
[366545495,1750314643512,-25000.0,0.00022233,2]
[366545497,1750314643522,-151.0,0.00022233,2]
[366545499,1750314643531,-500.0,0.00022233,2]
[366545501,1750314643540,-500.0,0.00022233,2]
[366545503,1750314643549,-500.0,0.00022233,2]
[366545505,1750314643559,-20456.686893,0.00022233,2]
[366545507,1750314643568,-151.0,0.00022233,2]
[366545509,1750314643578,-500.0,0.00022233,2]
[366545511,1750314643587,-500.0,0.00022233,2]
[366545512,1750314643597,-500.0,0.00022233,2]
[366545513,1750314643606,-151.0,0.00022233,2]
[366545514,1750314643616,-500.0,0.00022233,2]
[366545515,1750314643625,-500.0,0.00022233,2]
[366545516,1750314643634,-500.0,0.00022233,2]
[366545517,1750314643644,-151.0,0.00022233,2]
[366545519,1750314643653,-500.0,0.00022233,2]
[366545521,1750314643663,-500.0,0.00022233,2]
[366545523,1750314643672,-151.0,0.00022233,2]
[366545525,1750314643681,-500.0,0.00022233,2]
[366545526,1750314643691,-500.0,0.00022233,2]
[366545527,1750314643700,-151.0,0.00022233,2]
[366545528,1750314643710,-500.0,0.00022233,2]
[366545529,1750314643720,-500.0,0.00022233,2]
[366545530,1750314643729,-2794.84340694,0.00022233,2]
[366545531,1750314643738,-500.0,0.00022233,2]
[366545532,1750314643747,-151.0,0.00022233,2]
[366545533,1750314643757,-500.0,0.00022233,2]
[366545534,1750314643766,-500.0,0.00022233,2]
[366545535,1750314643775,-500.0,0.00022233,2]
[366545536,1750314643784,-151.0,0.00022233,2]
[366545537,1750314643794,-207.4,0.00022233,2]
[366545538,1750314643803,-500.0,0.00022233,2]
[366545539,1750314643813,-171.96145907,0.00022233,2]
[366545540,1750314643822,-151.0,0.00022233,2]
[366545541,1750314643831,-500.0,0.00022233,2]
[366545542,1750314643841,-500.0,0.00022233,2]
[366545543,1750314643850,-500.0,0.00022233,2]
[366545544,1750314643859,-500.0,0.00022233,2]
[366545545,1750314643869,-151.0,0.00022233,2]
[366545546,1750314643878,-500.0,0.00022233,2]
[366545547,1750314643887,-201.77647067,0.00022233,2]
[366545548,1750314643897,-500.0,0.00022233,2]
[366545549,1750314643906,-500.0,0.00022233,2]
[366545550,1750314643915,-500.0,0.00022233,2]
[366545551,1750314643925,-500.0,0.00022233,2]
[366545552,1750314643934,-500.0,0.00022233,2]
[366545553,1750314643943,-500.0,0.00022233,2]
[366545554,1750314643953,-500.0,0.00022233,2]
[366545555,1750314643962,-261.69012918,0.00022262,2]
[366545556,1750314643971,-1703.55011971,0.00022288,2]
[366545557,1750314643980,-2007.5961113,0.00022434,2]
[366545558,1750314643989,-610.6007423,0.00022464,3]
[366545559,1750314643998,-1476.84,0.00022465,6]
[366545560,1750314644008,-594.03,0.00022465,6]
[366545561,1750314644018,-460.0,0.00022465,6]
[366545562,1750314644027,-151.32482003,0.00022465,6]
[366545563,1750314644037,-151.38447872,0.00022465,6]
[366545564,1750314644047,-151.41753838,0.00022465,6]
[366545565,1750314644056,-500.0,0.00022465,6]
[366545566,1750314644066,-500.0,0.00022465,6]
[366545567,1750314644075,-231.04509601,0.00022465,6]
[366545568,1750314644084,-500.0,0.00022465,6]
[366545569,1750314644093,-198.58624684,0.00022465,6]
[366545570,1750314644103,-151.0,0.00022465,6]
[366545571,1750314644112,-177.04143942,0.00022465,6]
[366545572,1750314644121,-151.0,0.00022465,6]
[366545573,1750314644130,-558.02,0.00022465,6]
[366545574,1750314644140,-487.83,0.00022465,6]
[366545575,1750314644150,-460.0,0.00022465,6]
[366545576,1750314644159,-1624.74,0.00022465,6]
[366545577,1750314644169,-460.0,0.00022465,6]
[366545578,1750314644178,-184.76156487,0.00022465,6]
[366545579,1750314644188,-460.0,0.00022465,6]
[366545580,1750314644198,-156.42228897,0.00022465,6]
[366545581,1750314644207,-401.98987172,0.00022465,6]
[366545582,1750314644217,-577.72,0.00022465,6]
[366545583,1750314644226,-460.0,0.00022465,6]
[366545584,1750314644236,-460.0,0.00022465,6]
[366545585,1750314644245,-386.54047025,0.00022465,6]
[366545586,1750314644255,-537.5,0.00022465,6]
[366545587,1750314644265,-1524.28,0.00022465,6]
[366545588,1750314644275,-477.46,0.00022465,6]
[366545589,1750314644287,-460.0,0.00022465,6]
[366545590,1750314644297,-460.0,0.00022465,6]
[366545591,1750314644307,-583.04,0.00022465,6]
[366545592,1750314644316,-460.0,0.00022465,6]
[366545593,1750314644325,-460.0,0.00022465,6]
[366545594,1750314644335,-3639.1,0.00022465,6]
[366545595,1750314644344,-460.0,0.00022465,6]
[366545596,1750314644355,-1372.0,0.00022465,6]
[366545597,1750314644364,-2440.84,0.00022465,6]
[366545598,1750314644374,-3337.58,0.00022465,6]
[366545599,1750314644383,-460.0,0.00022465,6]
[366545600,1750314644392,-508.46,0.00022465,6]
[366545601,1750314644402,-808.15,0.00022465,6]
[366545602,1750314644412,-4300.21,0.00022465,6]
[366545603,1750314644422,-500.0,0.00022465,6]
[366545604,1750314644432,-3102.26,0.00022465,6]
[366545605,1750314644441,-151.0,0.00022465,6]
[366545606,1750314644450,-151.0,0.00022465,6]
[366545607,1750314644460,-272.74694086,0.00022465,6]
[366545608,1750314644469,-500.0,0.00022465,6]
[366545609,1750314644479,-151.0,0.00022465,6]
[366545610,1750314644488,-344.96000628,0.00022465,6]
[366545611,1750314644498,-170.17929928,0.00022465,6]
[366545612,1750314644507,-1152.07,0.00022465,6]
[366545613,1750314644517,-151.0,0.00022465,6]
[366545614,1750314644526,-460.0,0.00022465,6]
[366545615,1750314644536,-460.0,0.00022465,6]
[366545616,1750314644545,-845.89,0.00022465,6]
[366545617,1750314644554,-1041.67,0.00022465,6]
[366545618,1750314644563,-460.0,0.00022465,6]
[366545619,1750314644573,-460.0,0.00022465,6]
[366545620,1750314644582,-1375.18,0.00022465,6]
[366545621,1750314644591,-460.0,0.00022465,6]
[366545622,1750314644601,-460.0,0.00022465,6]
[366545623,1750314644610,-1437.42,0.00022465,6]
[366545624,1750314644619,-460.0,0.00022465,6]
[366545625,1750314644630,-460.0,0.00022465,6]
[366545626,1750314644639,-553.83,0.00022465,6]
[366545627,1750314644649,-460.0,0.00022465,6]
[366545628,1750314644658,-385.49434132,0.00022465,6]
[366545629,1750314644667,-688.99,0.00022465,6]
[366545630,1750314644676,-460.0,0.00022465,6]
[366545631,1750314644686,-977.0,0.00022465,6]
[366545632,1750314644694,-460.0,0.00022465,6]
[366545633,1750314644704,-460.0,0.00022465,6]
[366545634,1750314644713,-1282.29,0.00022465,6]
[366545635,1750314644723,-460.0,0.00022465,6]
[366545636,1750314644732,-460.0,0.00022465,6]
[366545637,1750314644741,-723.85,0.00022465,6]
[366545638,1750314644750,-537.51,0.00022465,6]
[366545639,1750314644760,-460.0,0.00022465,6]
[366545640,1750314644769,-460.0,0.00022465,6]
[366545641,1750314644779,-300.0,0.00022465,2]
[366545642,1750314644788,-460.0,0.00022465,6]
[366545643,1750314644798,-460.0,0.00022465,6]
[366545644,1750314644808,-387.40985349,0.00022465,6]
[366545645,1750314644817,-460.0,0.00022465,6]
[366545646,1750314644826,-460.0,0.00022465,6]
[366545647,1750314644835,-2314.76,0.00022465,6]
[366545648,1750314644845,-460.0,0.00022465,6]
[366545649,1750314644854,-1363.24,0.00022465,6]
[366545650,1750314644864,-2221.43,0.00022465,6]
[366545651,1750314644875,-371.24379111,0.00022465,6]
[366545652,1750314644886,-460.0,0.00022465,6]
[366545653,1750314644897,-151.0,0.00022465,6]
[366545654,1750314644907,-2678.14,0.00022465,6]
[366545655,1750314644916,-460.0,0.00022465,6]
[366545656,1750314644925,-460.0,0.00022465,6]
[366545657,1750314644935,-557.65,0.00022465,6]
[366545658,1750314644943,-460.0,0.00022465,6]
[366545659,1750314644953,-460.0,0.00022465,6]
[366545660,1750314644962,-2617.65,0.00022465,6]
[366545661,1750314644971,-460.0,0.00022465,6]
[366545662,1750314644981,-807.16,0.00022465,6]
[366545663,1750314644990,-625.14,0.00022465,6]
[366545664,1750314644999,-460.0,0.00022465,6]
[366545665,1750314645008,-679.82,0.00022465,6]
[366545666,1750314645017,-460.0,0.00022465,6]
[366545667,1750314645026,-500.0,0.00022492,6]
[366545668,1750314645036,-500.0,0.00022492,6]
[366545669,1750314645045,-500.0,0.00022492,6]
[366545670,1750314645054,-193.70892126,0.00022492,6]
[366545671,1750314645063,-267.57688465,0.00022492,6]
[366545672,1750314645072,-1372.0,0.00022492,6]
[366545673,1750314645081,-500.0,0.00022492,6]
[366545674,1750314645090,-151.0,0.00022492,6]
[366545675,1750314645100,-151.0,0.00022492,6]
[366545676,1750314645110,-500.0,0.00022492,6]
[366545677,1750314645118,-151.0,0.00022492,6]
[366545678,1750314645127,-151.0,0.00022492,6]
[366545679,1750314645137,-203.39711446,0.00022517,6]
[366545680,1750314645146,-500.0,0.0002252,6]
[366545681,1750314645155,-500.0,0.0002252,6]
[366545682,1750314645164,-500.0,0.0002252,6]
[366545683,1750314645174,-1372.0,0.0002252,6]
[366545684,1750314645183,-500.0,0.0002252,6]
[366545685,1750314645191,-228.2560716,0.0002252,6]
[366545686,1750314645201,-199.23961877,0.0002252,6]
[366545687,1750314645210,-500.0,0.0002252,6]
[366545688,1750314645220,-151.0,0.0002252,6]
[366545689,1750314645229,-204.21385254,0.0002252,6]
[366545690,1750314645238,-502.75230945,0.00022521,2]
[366545691,1750314645248,-1000.0,0.0002253,2]
[366545692,1750314645257,-1000.92,0.00022535,2]
[366545693,1750314645267,-500.0,0.00022547,6]
[366545694,1750314645277,-500.0,0.00022547,6]
[366545695,1750314645288,-500.0,0.00022547,6]
[366545696,1750314645297,-1372.0,0.00022547,6]
[366545697,1750314645306,-500.0,0.00022547,6]
[366545698,1750314645316,-500.0,0.00022547,6]
[366545699,1750314645325,-152.5341841,0.00022547,6]
[366545700,1750314645334,-500.0,0.00022575,6]
[366545701,1750314645343,-500.0,0.00022575,6]
[366545702,1750314645353,-500.0,0.00022575,6]
[366545703,1750314645363,-1372.0,0.00022575,6]
[366545704,1750314645373,-500.0,0.00022575,6]
[366545705,1750314645382,-500.0,0.00022575,6]
[366545706,1750314645391,-500.0,0.00022602,6]
[366545707,1750314645400,-500.0,0.00022602,6]
[366545708,1750314645409,-500.0,0.00022602,6]
[366545709,1750314645418,-1372.0,0.00022602,6]
[366545710,1750314645427,-500.0,0.00022602,6]
[366545711,1750314645436,-500.0,0.00022602,6]
[366545712,1750314645446,-500.0,0.00022629,6]
[366545713,1750314645455,-500.0,0.00022629,6]
[366545714,1750314645466,-500.0,0.00022629,6]
[366545715,1750314645476,-1372.0,0.00022629,6]
[366545716,1750314645486,-500.0,0.00022629,6]
[366545717,1750314645496,-500.0,0.00022629,6]
[366545718,1750314645505,-500.0,0.00022657,6]
[366545719,1750314645514,-500.0,0.00022657,6]
[366545720,1750314645524,-500.0,0.00022657,6]
[366545721,1750314645533,-1372.0,0.00022657,6]
[366545722,1750314645543,-500.0,0.00022657,6]
[366545723,1750314645553,-500.0,0.00022657,6]
[366545724,1750314645562,-232.26133193,0.00022684,6]
[366545725,1750314645572,-500.0,0.00022684,6]
[366545726,1750314645582,-500.0,0.00022684,6]
[366545727,1750314645591,-1372.0,0.00022684,6]
[366545728,1750314645601,-621.146023,0.00022684,6]
[366545729,1750314645611,-154.09503508,0.00022684,6]
[366545730,1750314645621,-285.0,0.00022708,2]